[Event "DVM U10 2024"]
[Site "Duesseldorf"]
[Date "2024.12.28"]
[Round "5"]
[White "Naveen, Yuvaan"]
[Black "Götz, Georg"]
[Result "0-1"]
[ECO "D00"]
[WhiteElo "1110"]
[BlackElo "1284"]
[Annotator "NA"]
[PlyCount "114"]
[EventDate "2024.12.23"]
[EventType "team-tourn"]
[EventRounds "7"]
[EventCountry "GER"]
[SourceTitle "playchess.com"]
[Source "ChessBase"]
[SourceQuality "1"]
[TimeControl "3300+5"]

1. d4 {[%emt 0:00:02]} Nf6 {[%emt 0:00:13]} 2. Bf4 {[%emt 0:00:06]} e6 {[%emt 0:00:17]} 3. e3 {[%emt 0:00:06]} d5 {[%emt 0:00:29]} 4. c3 {[%emt 0:00:08]} Bd6 {[%emt 0:00:40]} 5. Bg3 {[%emt 0:00:10]} Bxg3 {[%emt 0:00:27]} 6. hxg3 {[%emt 0:00:11]} Bd7 {[%emt 0:01:47]} 7. Nd2 {[%emt 0:00:14]} Bc6 {[%emt 0:00:53]} 8. Ngf3 {[%emt 0:00:20]} Nbd7 {[%emt 0:00:15]} 9. Bd3 {[%emt 0:00:19]} e5 {[%emt 0:00:53]} 10. Nxe5 {[%emt 0:00:33]} Nxe5 {[%emt 0:00:18]} 11. dxe5 {[%emt 0:00:06]} Ne4 {[%emt 0:00:54]} 12. Nxe4 {[%emt 0:00:26]} dxe4 {[%emt 0:00:21]} 13. Bc4 {[%emt 0:00:28]} Qxd1+ {[%emt 0:01:28]} 14. Rxd1 {[%emt 0:00:09]} O-O {[%emt 0:00:33]} 15. Ke2 {[%emt 0:01:09]} Rfe8 {[%emt 0:00:46]} 16. Rh4 {[%emt 0:01:22]} Rxe5 {[%emt 0:01:15]} 17. Rf4 {[%emt 0:00:47]} Re7 {[%emt 0:00:38]} 18. Bd5 {[%emt 0:01:38]} Bxd5 {[%emt 0:00:59]} 19. Rxd5 {[%emt 0:00:07]} b6 {[%emt 0:01:01]} 20. f3 {[%emt 0:01:44]} exf3+ {[%emt 0:00:26]} 21. gxf3 {[%emt 0:00:09]} c5 {[%emt 0:01:30]} 22. b4 {[%emt 0:00:52]} cxb4 {[%emt 0:01:09]} 23. cxb4 {[%emt 0:00:12]} Kf8 {[%emt 0:00:37]} 24. Rfd4 {[%emt 0:00:22]} Ke8 {[%emt 0:00:24]} 25. Kd3 {[%emt 0:00:58]} f6 {[%emt 0:01:07]} 26. f4 {[%emt 0:00:41]} Rc8 {[%emt 0:00:35]} 27. Re4 {[%emt 0:00:32]} Rd8 {[%emt 0:01:03]} 28. Rxe7+ {[%emt 0:00:21]} Kxe7 {[%emt 0:00:31]} 29. Rxd8 {[%emt 0:00:02]} Kxd8 {[%emt 0:00:11]} 30. Kd4 {[%emt 0:00:09]} Kd7 {[%emt 0:00:18]} 31. Kd5 {[%emt 0:00:07]} a6 {[%emt 0:00:44]} 32. a4 {[%emt 0:00:07]} g6 {[%emt 0:00:40]} 33. e4 {[%emt 0:00:41]} h5 {[%emt 0:01:26]} 34. e5 {[%emt 0:00:40]} fxe5 {[%emt 0:00:36]} 35. fxe5 {[%emt 0:00:07]} g5 {[%emt 0:00:23]} 36. e6+ {[%emt 0:00:10]} Ke7 {[%emt 0:00:57]} 37. Ke5 {[%emt 0:00:07]} h4 {[%emt 0:00:30]} 38. gxh4 {[%emt 0:00:08]} gxh4 {[%emt 0:00:29]} 39. Kf4 {[%emt 0:00:03]} Kxe6 {[%emt 0:00:09]} 40. Kg4 {[%emt 0:00:06]} Kd5 {[%emt 0:00:13]} 41. Kxh4 {[%emt 0:00:06]} Kc4 {[%emt 0:00:09]} 42. Kg4 {[%emt 0:00:05]} Kxb4 {[%emt 0:00:12]} 43. Kf4 {[%emt 0:00:06]} Kxa4 {[%emt 0:00:10]} 44. Ke4 {[%emt 0:00:07]} Kb4 {[%emt 0:00:09]} 45. Kd4 {[%emt 0:00:06]} a5 {[%emt 0:00:08]} 46. Kd3 {[%emt 0:00:07]} Kb3 {[%emt 0:00:08]} 47. Kd2 {[%emt 0:00:08]} Kb2 {[%emt 0:00:06]} 48. Kd3 {[%emt 0:00:04]} a4 {[%emt 0:00:16]} 49. Kc4 {[%emt 0:00:07]} a3 {[%emt 0:00:11]} 50. Kb5 {[%emt 0:00:04]} a2 {[%emt 0:00:06]} 51. Kxb6 {[%emt 0:00:03]} a1=Q {[%emt 0:00:20]} 52. Kc5 {[%emt 0:00:02]} Qd1 {[%emt 0:00:11]} 53. Kc4 {[%emt 0:00:08]} Qd6 {[%emt 0:00:14]} 54. Kb5 {[%emt 0:00:09]} Qc7 {[%emt 0:00:13]} 55. Ka4 {[%emt 0:00:08]} Qb7 {[%emt 0:00:16]} 56. Ka5 {[%emt 0:00:08]} Kc3 {[%emt 0:00:09]} 57. Ka4 {[%emt 0:00:08]} Qb4# {[%emt 0:00:17]} 0-1

[Event "DVM U10 2024"]
[Site "Duesseldorf"]
[Date "2024.12.28"]
[Round "5"]
[White "Tschötsch, Hugo"]
[Black "von Bassewitz, Friedrich"]
[Result "0-1"]
[ECO "D08"]
[WhiteElo "1110"]
[BlackElo "1163"]
[Annotator "NA RC"]
[PlyCount "46"]
[EventDate "2024.12.23"]
[EventType "team-tourn"]
[EventRounds "7"]
[EventCountry "GER"]
[SourceTitle "playchess.com"]
[Source "ChessBase"]
[SourceQuality "1"]
[TimeControl "3300+5"]

1. d4 {[%emt 0:00:01]} d5 {[%emt 0:00:25]} 2. c4 {[%emt 0:00:06]} e5 {[%emt 0:00:11]} 3. dxe5 {[%emt 0:00:08]} d4 {[%emt 0:00:07]} 4. Nf3 {[%emt 0:00:13]} Nc6 {[%emt 0:00:10]} 5. Bg5 {[%emt 0:00:36]} Bb4+ {[%emt 0:01:42]} 6. Bd2 {[%emt 0:04:55]} Bxd2+ {[%emt 0:02:11]} 7. Nbxd2 {[%emt 0:00:09]} Be6 {[%emt 0:00:13]} 8. Nb3 {[%emt 0:07:40]} Bxc4 {[%emt 0:00:53]} 9. Nbxd4 {[%emt 0:00:22]} Nge7 {[%emt 0:01:23]} 10. b3 {[%emt 0:02:37]} Ba6 {[%emt 0:01:54]} 11. g3 {[%emt 0:01:22]} Nxd4 {[%emt 0:01:19]} 12. Nxd4 {[%emt 0:05:29]} Ng6 {[%emt 0:00:35]} 13. Bg2 {[%emt 0:06:09]} Nxe5 {[%emt 0:00:56]} 14. O-O {[%emt 0:01:23]} O-O {[%emt 0:01:39]} 15. Re1 {[%emt 0:01:29]} Re8 {[%emt 0:00:45]} 16. e3 {[%emt 0:05:41]} Nd3 {[%emt 0:01:12]} 17. Re2 {[%emt 0:00:45]} Qe7 {[%emt 0:01:58]} 18. Nc2 {[%emt 0:06:47]} Rad8 {[%emt 0:00:57]} 19. Rd2 {[%emt 0:00:18]} Qf6 {[%emt 0:02:50]} 20. Ne1 {[%emt 0:02:09]} Nxe1 {[%emt 0:00:45]} 21. Qxe1 {[%emt 0:00:25]} Rxd2 {[%emt 0:00:13]} 22. Qxd2 {[%emt 0:00:06]} Qxa1+ {[%emt 0:00:11]} 23. Bf1 {[%emt 0:00:18]} Qxf1# {[%emt 0:00:13]} 0-1

[Event "DVM U10 2024"]
[Site "Duesseldorf"]
[Date "2024.12.28"]
[Round "5"]
[White "Kirchgessner, Thomas"]
[Black "Müller, Charlie Erik"]
[Result "0-1"]
[ECO "C50"]
[WhiteElo "1094"]
[BlackElo "1043"]
[Annotator "NA RC"]
[PlyCount "88"]
[EventDate "2024.12.23"]
[EventType "team-tourn"]
[EventRounds "7"]
[EventCountry "GER"]
[SourceTitle "playchess.com"]
[Source "ChessBase"]
[SourceQuality "1"]
[TimeControl "3300+5"]

1. e4 {[%emt 0:00:02]} e5 {[%emt 0:00:04]} 2. Nf3 {[%emt 0:00:04]} Nc6 {[%emt 0:00:05]} 3. Bc4 {[%emt 0:00:16]} Bc5 {[%emt 0:00:29]} 4. O-O {[%emt 0:00:13]} Nf6 {[%emt 0:00:06]} 5. Nc3 {[%emt 0:00:07]} O-O {[%emt 0:00:07]} 6. d3 {[%emt 0:00:50]} d6 {[%emt 0:00:12]} 7. Be3 {[%emt 0:00:32]} Bb6 {[%emt 0:00:09]} 8. d4 {[%emt 0:00:24]} exd4 {[%emt 0:00:24]} 9. Nxd4 {[%emt 0:00:10]} Nxe4 {[%emt 0:00:16]} 10. Nxc6 {[%emt 0:00:57]} bxc6 {[%emt 0:00:09]} 11. Bxb6 {[%emt 0:00:55]} axb6 {[%emt 0:00:10]} 12. Nxe4 {[%emt 0:00:58]} d5 {[%emt 0:00:05]} 13. Bxd5 {[%emt 0:00:06]} cxd5 {[%emt 0:00:08]} 14. Ng3 {[%emt 0:00:19]} c5 {[%emt 0:00:43]} 15. Re1 {[%emt 0:01:08]} Be6 {[%emt 0:00:48]} 16. Re2 {[%emt 0:03:53]} Qf6 {[%emt 0:01:20]} 17. a4 {[%emt 0:01:55]} Qxb2 {[%emt 0:00:33]} 18. c4 {[%emt 0:05:34]} Qd4 {[%emt 0:00:27]} 19. cxd5 {[%emt 0:02:07]} Qxd5 {[%emt 0:00:17]} 20. Qxd5 {[%emt 0:00:53]} Bxd5 {[%emt 0:02:12]} 21. Nf5 {[%emt 0:00:19]} Be6 {[%emt 0:00:34]} 22. Ne7+ {[%emt 0:00:19]} Kh8 {[%emt 0:00:05]} 23. Rb2 {[%emt 0:01:02]} Rfd8 {[%emt 0:00:14]} 24. h3 {[%emt 0:00:31]} Rd6 {[%emt 0:00:51]} 25. a5 {[%emt 0:00:52]} bxa5 {[%emt 0:01:40]} 26. Rab1 {[%emt 0:00:53]} h6 {[%emt 0:00:22]} 27. Rb8+ {[%emt 0:01:20]} Rxb8 {[%emt 0:00:10]} 28. Rxb8+ {[%emt 0:00:07]} Kh7 {[%emt 0:00:07]} 29. Nc8 {[%emt 0:00:15]} Rc6 {[%emt 0:00:31]} 30. Nb6 {[%emt 0:00:50]} c4 {[%emt 0:00:21]} 31. Na4 {[%emt 0:00:45]} c3 {[%emt 0:00:08]} 32. Rb1 {[%emt 0:00:22]} Bb3 {[%emt 0:01:05]} 33. Nxc3 {[%emt 0:01:03]} Rxc3 {[%emt 0:00:17]} 34. Ra1 {[%emt 0:00:08]} a4 {[%emt 0:00:07]} 35. Ra3 {[%emt 0:00:20]} Rc2 {[%emt 0:01:16]} 36. f4 {[%emt 0:00:28]} Ra2 {[%emt 0:00:26]} 37. Rxa2 {[%emt 0:00:14]} Bxa2 {[%emt 0:00:06]} 38. f5 {[%emt 0:00:08]} Bb3 {[%emt 0:00:02]} 39. g4 {[%emt 0:00:09]} a3 {[%emt 0:00:11]} 40. h4 {[%emt 0:00:07]} a2 {[%emt 0:00:04]} 41. g5 {[%emt 0:00:08]} a1=Q+ {[%emt 0:00:15]} 42. Kh2 {[%emt 0:00:10]} Qb2+ {[%emt 0:00:13]} 43. Kh1 {[%emt 0:00:10]} Qf2 {[%emt 0:00:22]} 44. gxh6 {[%emt 0:00:10]} Bd5# {[%emt 0:00:06]} 0-1

[Event "DVM U10 2024"]
[Site "Duesseldorf"]
[Date "2024.12.28"]
[Round "5"]
[White "Chen, Aimée"]
[Black "Michelson, Nathan"]
[Result "1-0"]
[ECO "C55"]
[WhiteElo "1090"]
[BlackElo "1198"]
[Annotator "NA RC"]
[PlyCount "59"]
[EventDate "2024.12.23"]
[EventType "team-tourn"]
[EventRounds "7"]
[EventCountry "GER"]
[SourceTitle "playchess.com"]
[Source "ChessBase"]
[SourceQuality "1"]
[TimeControl "3300+5"]

1. e4 {[%emt 0:00:03]} e5 {[%emt 0:00:11]} 2. Nf3 {[%emt 0:00:05]} Nf6 {[%emt 0:00:07]} 3. Nc3 {[%emt 0:00:11]} Nxe4 {[%emt 0:00:00]} 4. Nxe4 {[%emt 0:02:27]} d5 {[%emt 0:00:02]} 5. Ng3 {[%emt 0:01:01]} Nc6 {[%emt 0:00:11]} 6. Bb5 {[%emt 0:00:07]} Bd6 {[%emt 0:00:09]} 7. d3 {[%emt 0:00:40]} Bd7 {[%emt 0:00:05]} 8. h3 {[%emt 0:00:16]} O-O {[%emt 0:00:06]} 9. O-O {[%emt 0:00:05]} a6 {[%emt 0:01:02]} 10. Ba4 {[%emt 0:00:28]} b5 {[%emt 0:00:07]} 11. Bb3 {[%emt 0:00:04]} Be6 {[%emt 0:00:09]} 12. c3 {[%emt 0:00:16]} Bc5 {[%emt 0:01:19]} 13. d4 {[%emt 0:01:48]} exd4 {[%emt 0:00:06]} 14. cxd4 {[%emt 0:00:11]} Bb6 {[%emt 0:00:13]} 15. Be3 {[%emt 0:00:25]} f5 {[%emt 0:00:28]} 16. Bf4 {[%emt 0:00:49]} Rc8 {[%emt 0:00:20]} 17. Re1 {[%emt 0:00:22]} Na5 {[%emt 0:02:00]} 18. Rxe6 {[%emt 0:00:27]} Qd7 {[%emt 0:00:27]} 19. Re5 {[%emt 0:00:45]} Nxb3 {[%emt 0:00:20]} 20. Qxb3 {[%emt 0:00:14]} Rcd8 {[%emt 0:00:21]} 21. Rae1 {[%emt 0:00:23]} c5 {[%emt 0:00:28]} 22. Qd3 {[%emt 0:01:01]} c4 {[%emt 0:01:37]} 23. Qc2 {[%emt 0:01:34]} Qc8 {[%emt 0:00:58]} 24. Nxf5 {[%emt 0:00:25]} Bc7 {[%emt 0:00:20]} 25. Ne7+ {[%emt 0:00:13]} Kh8 {[%emt 0:00:12]} 26. Nxc8 {[%emt 0:00:15]} Bxe5 {[%emt 0:00:10]} 27. Bxe5 {[%emt 0:00:17]} Rxc8 {[%emt 0:00:10]} 28. Ng5 {[%emt 0:00:30]} Rf5 {[%emt 0:01:02]} 29. Qxf5 {[%emt 0:00:15]} Kg8 {[%emt 0:00:06]} 30. Qxc8# {[%emt 0:00:18]} 1-0

[Event "DVM U10 2024"]
[Site "Duesseldorf"]
[Date "2024.12.28"]
[Round "5"]
[White "Kutschenreuter, Leo"]
[Black "Thirumal, Shravan"]
[Result "0-1"]
[ECO "C47"]
[WhiteElo "1085"]
[BlackElo "1614"]
[Annotator "NA RC"]
[PlyCount "127"]
[EventDate "2024.12.23"]
[EventType "team-tourn"]
[EventRounds "7"]
[EventCountry "GER"]
[SourceTitle "playchess.com"]
[Source "ChessBase"]
[SourceQuality "1"]
[TimeControl "3300+5"]

1. e4 {[%emt 0:00:06]} e5 {[%emt 0:00:10]} 2. Nf3 {[%emt 0:00:07]} Nc6 {[%emt 0:00:28]} 3. Nc3 {[%emt 0:00:13]} Nf6 {[%emt 0:01:19]} 4. a3 {[%emt 0:00:07]} Bc5 {[%emt 0:01:24]} 5. Nxe5 {[%emt 0:00:14]} Nxe5 {[%emt 0:02:11]} 6. d4 {[%emt 0:00:11]} Bxd4 {[%emt 0:01:02]} 7. Qxd4 {[%emt 0:00:29]} Nc6 {[%emt 0:00:03]} 8. Qd1 {[%emt 0:00:28]} O-O {[%emt 0:00:43]} 9. Bg5 {[%emt 0:00:26]} h6 {[%emt 0:01:51]} 10. Bh4 {[%emt 0:00:11]} d6 {[%emt 0:00:45]} 11. Bc4 {[%emt 0:01:16]} Ne5 {[%emt 0:01:15]} 12. Bb3 {[%emt 0:01:04]} Be6 {[%emt 0:06:35]} 13. Bxe6 {[%emt 0:00:33]} fxe6 {[%emt 0:03:26]} 14. Qe2 {[%emt 0:02:12]} c5 {[%emt 0:03:17]} 15. O-O-O {[%emt 0:01:54]} a6 {[%emt 0:05:19]} 16. Bg3 {[%emt 0:02:18]} Qc7 {[%emt 0:01:15]} 17. f4 {[%emt 0:01:40]} Nc6 {[%emt 0:00:29]} 18. f5 {[%emt 0:00:28]} Nd4 {[%emt 0:00:39]} 19. Qc4 {[%emt 0:05:26]} b5 {[%emt 0:02:47]} 20. Qa2 {[%emt 0:00:45]} b4 {[%emt 0:06:51]} 21. fxe6 {[%emt 0:02:37]} Kh8 {[%emt 0:02:12]} 22. Nd5 {[%emt 0:04:45]} b3 {[%emt 0:01:28]} 23. cxb3 {[%emt 0:01:58]} Nxd5 {[%emt 0:01:00]} 24. exd5 {[%emt 0:01:08]} Rab8 {[%emt 0:01:43]} 25. Kb1 {[%emt 0:03:06]} Rxb3 {[%emt 0:01:30]} 26. Rxd4 {[%emt 0:02:20]} Rxb2+ {[%emt 0:00:40]} 27. Qxb2 {[%emt 0:00:15]} Rb8 {[%emt 0:01:10]} 28. Rd2 {[%emt 0:00:47]} Rxb2+ {[%emt 0:00:48]} 29. Rxb2 {[%emt 0:00:20]} c4 {[%emt 0:00:16]} 30. Rc1 {[%emt 0:00:10]} a5 {[%emt 0:00:21]} 31. e7 {[%emt 0:01:10]} Qxe7 {[%emt 0:00:03]} 32. Rxc4 {[%emt 0:00:14]} Qe3 {[%emt 0:00:14]} 33. Ra4 {[%emt 0:00:51]} Qd3+ {[%emt 0:00:15]} 34. Kc1 {[%emt 0:03:04]} Qxd5 {[%emt 0:00:47]} 35. Rd2 {[%emt 0:02:35]} Qc6+ {[%emt 0:00:04]} 36. Kb1 {[%emt 0:03:10]} Qxa4 {[%emt 0:00:03]} 37. Bxd6 {[%emt 0:01:03]} Qb5+ {[%emt 0:00:02]} 38. Ka2 {[%emt 0:01:58]} Qc4+ {[%emt 0:00:08]} 39. Kb2 {[%emt 0:00:30]} a4 {[%emt 0:00:15]} 40. h3 {[%emt 0:01:21]} Qb3+ {[%emt 0:00:03]} 41. Kc1 {[%emt 0:00:04]} Qc3+ {[%emt 0:00:02]} 42. Kd1 {[%emt 0:00:03]} Qa1+ {[%emt 0:00:03]} 43. Ke2 {[%emt 0:00:02]} Qf6 {[%emt 0:00:07]} 44. Bg3 {[%emt 0:00:07]} Qe6+ {[%emt 0:00:01]} 45. Kd1 {[%emt 0:00:05]} Qf6 {[%emt 0:00:08]} 46. Rf2 {[%emt 0:00:09]} Qd4+ {[%emt 0:00:03]} 47. Ke1 {[%emt 0:00:02]} Qc3+ {[%emt 0:00:04]} 48. Ke2 {[%emt 0:00:06]} Qxg3 {[%emt 0:00:05]} 49. Rf8+ {[%emt 0:00:04]} Kh7 {[%emt 0:00:00]} 50. Ra8 {[%emt 0:00:04]} Qf4 {[%emt 0:00:02]} 51. Kd3 {[%emt 0:00:02]} Qf5+ {[%emt 0:00:02]} 52. Ke3 {[%emt 0:00:23]} Qc5+ {[%emt 0:00:03]} 53. Kf4 {[%emt 0:00:02]} Qc4+ {[%emt 0:00:06]} 54. Ke5 {[%emt 0:00:04]} Qc7+ {[%emt 0:00:01]} 55. Kd4 {[%emt 0:00:04]} Qd7+ {[%emt 0:00:04]} 56. Kc3 {[%emt 0:00:02]} Qd6 {[%emt 0:00:09]} 57. Rxa4 {[%emt 0:00:06]} Qc6+ {[%emt 0:00:02]} 58. Kb4 {[%emt 0:00:04]} Qb6+ {[%emt 0:00:02]} 59. Kc3 {[%emt 0:00:03]} Qc5+ {[%emt 0:00:01]} 60. Rc4 {[%emt 0:00:02]} Qxa3+ {[%emt 0:00:01]} 61. Kd4 {[%emt 0:00:01]} Qd6+ {[%emt 0:00:02]} 62. Kc3 {[%emt 0:00:01]} Qg3+ {[%emt 0:00:03]} 63. Kb4 {[%emt 0:00:01]} Qxg2 {[%emt 0:00:02]} 64. h4 {[%emt 0:00:02]} 0-1

[Event "DVM U10 2024"]
[Site "Duesseldorf"]
[Date "2024.12.28"]
[Round "5"]
[White "Pardo Lorz, Noah"]
[Black "Pukshansky, Mikhail B"]
[Result "0-1"]
[ECO "C50"]
[WhiteElo "1067"]
[BlackElo "2405"]
[Annotator "TA"]
[PlyCount "68"]
[EventDate "2024.12.23"]
[EventType "team-tourn"]
[EventRounds "7"]
[EventCountry "GER"]
[SourceTitle "playchess.com"]
[Source "ChessBase"]
[SourceQuality "1"]
[TimeControl "3300+5"]

{[%evp 9,67,8,92,2,88,10,83,0,94,24,79,-92,-5,-62,-48,-98,-83,-101,-120,-152,-153,-402,-385,-430,-360,-344,-316,-323,-288,-792,-777,-831,-827,-869,-856,-960,-956,-1203,-1204,-1419,-1418,-1529,-1521,-1493,-1466,-2088,-1956,-6110,-2107,-6552,-6497,-29990,-29981,-29993,-29994,-29995,-29980,-29996,-29997,-29999]} 1. e4 {[%emt 0:00:02]} e5 {[%emt 0:00:05]} 2. Nf3 {[%emt 0:00:03]} Nc6 {[%emt 0:00:06]} 3. Bc4 {[%emt 0:00:05]} Bc5 {[%emt 0:00:24]} 4. d3 {[%emt 0:00:12]} h6 {[%emt 0:00:13]} 5. Be3 {[%emt 0:00:10]} d6 {[%emt 0:00:28]} (5... Bxe3 $11 {keeps the balance.} 6. fxe3 Nf6) 6. c3 {[%emt 0:00:03]} ({White should play} 6. Bxc5 $16 {And now Be3 would win.} dxc5 7. Bb5) 6... Bg4 {[%emt 0:01:01] [#]} (6... Bxe3 $11 7. fxe3 Na5) 7. Nbd2 {[%emt 0:00:02]} (7. Bxc5 $1 $16 {Strongly threatening Be3.} dxc5 8. Qb3) 7... Nf6 {[%emt 0:00:21]} (7... Bxe3 $11 8. fxe3 Na5) 8. h3 {[%emt 0:00:07]} ({Better is} 8. Bxc5 $16 {Be3 would now be deadly.} dxc5 9. Bb5) 8... Bh5 {[%emt 0:00:10] [#]} (8... Bxe3 $11 {remains equal.} 9. fxe3 Bd7) 9. g4 {[%emt 0:00:07]} ({White should try} 9. Bxc5 $1 $16 dxc5 10. a4) 9... Bg6 {[%emt 0:00:22]} (9... Bxe3 $11 10. fxe3 Bg6) 10. b4 $2 {[%emt 0:00:12]} (10. Bxc5 $16 {and life is bright. Be3 is the strong threat.} dxc5 11. Bb5) 10... Bb6 {[%emt 0:00:31]} (10... Bxe3 $17 11. fxe3 d5) 11. Nb3 {[%emt 0:00:05]} (11. Nh4 $11) 11... O-O {[%emt 0:00:32]} 12. Bxb6 {[%emt 0:00:10]} (12. g5 $15 d5 13. exd5 (13. gxf6 dxc4 14. fxg7 Re8 $15) 13... Nxd5 14. b5 Nxe3 (14... Nxc3 15. Qd2 $14) 15. fxe3) 12... cxb6 {[%emt 0:01:08]} 13. b5 {[%emt 0:00:15]} Ne7 {[%emt 0:00:34]} 14. Nh4 {[%emt 0:00:22]} Bh7 {[%emt 0:00:32]} 15. d4 $2 {[%emt 0:00:17]} (15. Ng2 $17) 15... Nxe4 $19 {[%emt 0:00:29]} 16. dxe5 {[%emt 0:00:09]} dxe5 {[%emt 0:00:17]} 17. Qxd8 {[%emt 0:00:10]} Raxd8 {[%emt 0:00:13]} 18. O-O {[%emt 0:00:13]} Nd6 {[%emt 0:00:39]} ({But not} 18... Nxc3 19. Rfe1 $19) 19. Rad1 $2 {[%emt 0:00:10]} (19. Be2) 19... Nxc4 {[%emt 0:00:17]} 20. Rxd8 {[%emt 0:00:11]} Rxd8 {[%emt 0:00:08]} 21. Re1 {[%emt 0:00:55]} f6 {[%emt 0:00:26]} 22. Nc1 {[%emt 0:00:27]} Nd2 {[%emt 0:00:27]} 23. Ne2 {[%emt 0:00:43]} g5 {[%emt 0:00:19]} 24. Ra1 {[%emt 0:01:05]} gxh4 {[%emt 0:00:13]} 25. a4 {[%emt 0:00:18]} Nf3+ {[%emt 0:00:30]} 26. Kg2 {[%emt 0:00:12]} Be4 {[%emt 0:00:50]} 27. Kf1 {[%emt 0:00:02]} Bd3 {[%emt 0:00:38]} 28. a5 {[%emt 0:00:22]} Rc8 {[%emt 0:00:22]} 29. axb6 {[%emt 0:00:12]} axb6 {[%emt 0:00:08][%cal Oe7d5] ( -> ...Nd5!)} 30. Ra7 {[%emt 0:00:23]} Bxb5 {[%emt 0:00:16] Black mates.} 31. Rxb7 {[%emt 0:00:14] [#]} Rxc3 $1 {[%emt 0:00:14]} 32. Rxe7 {[%emt 0:00:14]} (32. Kg2 Bxe2) 32... Rc1+ {[%emt 0:00:28]} 33. Kg2 {[%emt 0:00:12]} Bxe2 {[%emt 0:00:09][%csl Gf3][%cal Rc1g1]} 34. Rb7 {[%emt 0:00:21]} Rg1# {[%emt 0:00:11] White did not feel at home in the position after the opening.   Weighted Error Value: White=1.10/Black=0.40.  Loses game:     	White=1     	---        Mistake:       	White=7     	Black=5      OK:         	White=1     	Black=2      Best:        	---       	Black=1} 0-1

[Event "DVM U10 2024"]
[Site "Duesseldorf"]
[Date "2024.12.28"]
[Round "5"]
[White "Fischer, Emil Fiete"]
[Black "Trunz, Daniel"]
[Result "0-1"]
[ECO "C54"]
[WhiteElo "1050"]
[BlackElo "1440"]
[Annotator "NA RC"]
[PlyCount "104"]
[EventDate "2024.12.23"]
[EventType "team-tourn"]
[EventRounds "7"]
[EventCountry "GER"]
[SourceTitle "playchess.com"]
[Source "ChessBase"]
[SourceQuality "1"]
[TimeControl "3300+5"]

1. e4 {[%emt 0:00:03]} e5 {[%emt 0:00:01]} 2. Nf3 {[%emt 0:00:10]} Nc6 {[%emt 0:00:30]} 3. Bc4 {[%emt 0:00:07]} Bc5 {[%emt 0:00:23]} 4. O-O {[%emt 0:00:10]} d6 {[%emt 0:01:07]} 5. c3 {[%emt 0:00:08]} Bg4 {[%emt 0:00:44]} 6. h3 {[%emt 0:00:08]} Bh5 {[%emt 0:00:09]} 7. d3 {[%emt 0:00:08]} Nf6 {[%emt 0:01:27]} 8. Be3 {[%emt 0:00:11]} Bb6 {[%emt 0:01:12]} 9. Nbd2 {[%emt 0:00:09]} O-O {[%emt 0:00:32]} 10. Qb3 {[%emt 0:00:42]} h6 {[%emt 0:04:00]} 11. Qc2 {[%emt 0:00:31]} Ne7 {[%emt 0:01:40]} 12. d4 {[%emt 0:00:10]} Ng6 {[%emt 0:02:19]} 13. a4 {[%emt 0:00:18]} a5 {[%emt 0:01:51]} 14. dxe5 {[%emt 0:00:52]} dxe5 {[%emt 0:01:44]} 15. Rad1 {[%emt 0:00:13]} Re8 {[%emt 0:04:07]} 16. Qb3 {[%emt 0:00:13]} Qe7 {[%emt 0:01:52]} 17. Bxb6 {[%emt 0:00:17]} cxb6 {[%emt 0:00:21]} 18. Qxb6 {[%emt 0:00:12]} Red8 {[%emt 0:05:46]} 19. Qe3 {[%emt 0:00:24]} Rd6 {[%emt 0:01:29]} 20. Rfe1 {[%emt 0:00:25]} Rad8 {[%emt 0:01:19]} 21. Be2 {[%emt 0:00:20]} Ne8 {[%emt 0:01:37]} 22. Nf1 {[%emt 0:00:08]} Nf4 {[%emt 0:02:16]} 23. Rxd6 {[%emt 0:00:16]} Nxe2+ {[%emt 0:01:37]} 24. Rxe2 {[%emt 0:00:15]} Rxd6 {[%emt 0:01:01]} 25. Re1 {[%emt 0:00:12]} Qd7 {[%emt 0:00:57]} 26. Ng3 {[%emt 0:00:14]} Bxf3 {[%emt 0:01:16]} 27. Qxf3 {[%emt 0:00:06]} Qxa4 {[%emt 0:01:30]} 28. Qe2 {[%emt 0:01:24]} Nf6 {[%emt 0:01:32]} 29. Nf5 {[%emt 0:00:29]} Rd7 {[%emt 0:00:48]} 30. Qf3 {[%emt 0:01:02]} Kh7 {[%emt 0:01:53]} 31. Qg3 {[%emt 0:00:17]} g6 {[%emt 0:00:33]} 32. Qxe5 {[%emt 0:00:43]} Nh5 {[%emt 0:02:24]} 33. Ng3 {[%emt 0:01:40]} Nxg3 {[%emt 0:00:49]} 34. Qxg3 {[%emt 0:00:07]} Qb3 {[%emt 0:01:16]} 35. Re2 {[%emt 0:00:35]} Qd1+ {[%emt 0:00:17]} 36. Re1 {[%emt 0:00:15]} Qxe1+ {[%emt 0:00:10]} 37. Kh2 {[%emt 0:00:08]} Qxe4 {[%emt 0:00:27]} 38. f3 {[%emt 0:00:17]} Qc2 {[%emt 0:00:29]} 39. b4 {[%emt 0:00:14]} Qxc3 {[%emt 0:00:15]} 40. bxa5 {[%emt 0:00:10]} Qxa5 {[%emt 0:00:05]} 41. Qf4 {[%emt 0:00:58]} b5 {[%emt 0:00:21]} 42. Qe5 {[%emt 0:00:23]} Qc7 {[%emt 0:00:24]} 43. Qxc7 {[%emt 0:00:12]} Rxc7 {[%emt 0:00:02]} 44. Kg3 {[%emt 0:00:19]} b4 {[%emt 0:00:11]} 45. Kf4 {[%emt 0:00:14]} b3 {[%emt 0:00:26]} 46. g4 {[%emt 0:00:37]} b2 {[%emt 0:00:00]} 47. h4 {[%emt 0:00:22]} b1=Q {[%emt 0:00:00]} 48. g5 {[%emt 0:00:28]} Qf5+ {[%emt 0:00:13]} 49. Kg3 {[%emt 0:00:14]} Rc3 {[%emt 0:00:18]} 50. gxh6 {[%emt 0:00:31]} Qxf3+ {[%emt 0:00:06]} 51. Kh2 {[%emt 0:00:21]} Rc2+ {[%emt 0:00:12]} 52. Kg1 {[%emt 0:00:09]} Qg2# {[%emt 0:00:14]} 0-1